Cogmind - Beta 15 @@@ ROGUE MODE // 2025.07.29 @ 18:55:11 Player: H3-RMN Result: Destroyed by OH-21K(j) with Overtuned Pulse Rifle Performance ------------- Evolutions (0) 0 Regions Visited (3) 600 Robots Destroyed (12) 60 Value Destroyed (295) 295 Prototype IDs (12) 240 Alien Tech Used (0) 0 Bonus (969) 969 TOTAL SCORE: 2164 Bonus ------- Follower Combat Kills 169 Registered with UFD 300 Met Optimus in HQ 500 Cogmind --------- Core Integrity 0/250 Matter 275/300 Energy 128/140 System Corruption 0% Temperature Hot (264) Movement Treading (460) Ox3 Location -7/Scraptown Parts ------- > --- POWER (1) -------- Light Deuterium Engine > --- PROPULSION (2) --- Spiked Treads Compact Wheel > --- UTILITY (2) ------ High-capacity Storage Unit Improved Medium Armor Plating > --- WEAPON (2) ------- Gatling Laser Subdweller Beam Cannon > --- INVENTORY (20) --- Graviton Reactor Overtuned Huge Scrapsphere Scrap Suit Rocket Booster Experimental Terrain Scan Processor Transmission Jammer Grenade Launcher CPS Tube (2) CPS Tube (2) Multitool Ripper Thermal Lance Botcube Botcube Large Botcube Large Botcube Peak State ------------ > --- POWER ------------ Nuclear Core > --- PROPULSION ------- Spiked Treads Compact Wheel > --- UTILITY ---------- High-capacity Storage Unit Improved Medium Armor Plating > --- WEAPON ----------- Gatling Laser Thermal Lance > --- INVENTORY -------- Light Deuterium Engine Graviton Reactor Overtuned Treads Overtuned Huge Scrapsphere Scrap Suit Rocket Booster Experimental Terrain Scan Processor Transmission Jammer Grenade Launcher CPS Tube CPS Tube Multitool Ripper Botcube Large Botcube Large Botcube [Rating: 37] Favorites ----------- Power Subdweller Power Source Engine Subdweller Power Source Power Core Nuclear Core Propulsion Compact Wheel Treads Spiked Treads Wheel Compact Wheel Utility Improved Medium Armor Plating Device Cobbler Unit Storage High-capacity Storage Unit Protection Improved Medium Armor Plating Weapon Subdweller Machine Gun Energy Gun Gatling Laser Energy Cannon Subdweller Beam Cannon Ballistic Gun Subdweller Machine Gun Special Weapon CPS Tube Slashing Weapon Ripper Piercing Weapon Thermal Lance Build | -11 -10 -10 -7 ------- Run | Yrd Mat Sub Scr Slots Evolved . | . . . . Power . | . . . . Propulsion . | . . . . Utility . | . . . . Weapon . | . . . . Parts Attached 37 | 7 . 17 13 Power 6 | 1 . 2 3 Engine 5 | 1 . 2 2 Core 1 | . . . 1 Reactor . | . . . . Propulsion 5 | 2 . 3 . Treads 3 | . . 3 . Leg . | . . . . Wheel 2 | 2 . . . Hover . | . . . . Flight . | . . . . Utility 9 | 2 . 3 4 Device 3 | 1 . 1 1 Storage 3 | 1 . . 2 Processor . | . . . . Hackware . | . . . . Protection 3 | . . 2 1 Artifact . | . . . . Weapon 17 | 2 . 9 6 Energy Gun 4 | 1 . 2 1 Energy Cannon 4 | . . 2 2 Ballistic Gun 5 | 1 . 4 . Ballistic Cannon . | . . . . Launcher . | . . . . Special Weapon 2 | . . . 2 Impact Weapon . | . . . . Slashing Weapon 1 | . . 1 . Piercing Weapon 1 | . . . 1 Special Melee Weapon . | . . . . Unidentified Prototypes . | . . . . Parts Lost 4 | . . 3 1 Power 2 | . . 1 1 Propulsion . | . . . . Utility 1 | . . 1 . Weapon 1 | . . 1 . Highest Loss Streak 2 | . . 2 1 To Critical Strikes . | . . . . Average Backups 6 | 3 8 4 8 Power . | . 1 . . Propulsion . | 1 4 1 . Utility 1 | . 1 . 2 Weapon 1 | 1 2 1 2 Tool/Special . | . . . . Unused Backups 27 | . . 6 21 Power 3 | . . 1 2 Propulsion 6 | . . 2 4 Utility 9 | . . 1 8 Weapon 6 | . . 2 4 Tool/Special 3 | . . . 3 Average Slot Usage (%) 82 | . 100 87 80 Engine 12 | . 14 13 11 Core 1 | . . . 2 Treads 12 | . . 11 14 Wheel 15 | . 28 16 14 Device 4 | . 14 6 3 Storage 7 | . 14 2 9 Protection 7 | . . 7 8 Energy Gun 3 | . 14 3 2 Energy Cannon 6 | . . 7 6 Ballistic Gun 8 | . 14 16 5 Special Weapon 1 | . . . 1 Peak Build Rating 37 | 8 8 15 37 Average Rating 13 | 5 8 11 14 On Entrance 7 | . 8 8 14 Naked Turns . | . . . . Heaviest Build 66 | 13 13 35 66 Greatest Support 26 | 26 26 26 16 Greatest Overweight (x) 4 | . . 2 4 Average Overweight (x) 1 | . . 1 1 Largest Inventory Capacity 20 | 8 8 8 20 Average Capacity 11 | 7 8 5 13 Most Carried 20 | 8 8 8 20 Average Carried 8 | 4 8 5 9 Final Capacity 20 | 8 8 5 20 Final Carried 20 | 8 8 5 20 Class Distribution -------------------- 76% | Mutant 23% | Subdweller-Mutant Dominant Class ---------------- Mutant | -10/Materials Subdweller-Mutant | -10/Subcaves Mutant | -7/Scraptown Resources | -11 -10 -10 -7 ----------- Run | Yrd Mat Sub Scr Matter Collected 1174 | 272 . 493 409 Remotely . | . . . . Salvage Created 439 | 118 . 321 . Parts 26 | 9 . 17 . Haulers Intercepted . | . . . . Recyclers Shooed . | . . . . Parts Field Recycled . | . . . . Retrieved Matter . | . . . . Parts Self-Destructed 15 | . . 12 3 Prevented . | . . . . Kills | -11 -10 -10 -7 ------- Run | Yrd Mat Sub Scr Combat Hostiles Destroyed 9 | . . 9 . Guns 4 | . . 4 . Cannons 4 | . . 4 . Classes Destroyed 6 | 2 . 4 . Tunneler 2 | 2 . . . Recycler 1 | 1 . . . Swarmer 3 | . . 3 . Sentry 1 | . . 1 . Cobbler 1 | . . 1 . Subdweller 5 | . . 5 . Best Kill Streak 3 | 2 . 3 . Combat Bots Only 3 | . . 3 . Max Kills in Single Turn 1 | 1 . 1 . Gunslinging . | . . . . Exploded . | . . . . Melee . | . . . . Uniques/NPCs Destroyed . | . . . . Combat | -11 -10 -10 -7 -------- Run | Yrd Mat Sub Scr Hostile Shots Fired 87 | . . 54 33 Missed 20 | . . 14 6 Hits 67 | . . 40 27 Projectile 67 | . . 40 27 Critical Strikes 2 | . . 2 . Damage Taken 1298 | 14 . 834 450 Core 269 | 14 . 174 81 Absorbed by Shields . | . . . . Core Remaining (%) 94 | 94 . . . Volleys Fired 72 | 6 . 57 9 Largest 2 | 2 . 2 2 Hottest 160 | 60 . 110 160 Shots Fired 121 | 12 . 96 13 Gun 90 | 12 . 74 4 Cannon 27 | . . 22 5 Launcher . | . . . . Special 4 | . . . 4 Kinetic 69 | 6 . 63 . Thermal 40 | . . 31 9 Explosive . | . . . . Electromagnetic 8 | 6 . 2 . Robot Hit Streak 12 | 5 . 12 9 Robot Miss Streak 3 | 2 . 3 3 Penetration Max . | . . . . Secondary Targets . | . . . . Shots Hit Robots 77 | 7 . 60 10 Core Hits 22 | 4 . 16 2 Critical Kills 1 | . . 1 . Critical Parts Destroyed . | . . . . Critical Strikes 3 | . . 3 . Burn 1 | . . 1 . Meltdown 1 | . . 1 . Sever 1 | . . 1 . Melee Attacks 4 | . . 1 3 Thermal 1 | . . . 1 Impact . | . . . . Slashing 3 | . . 1 2 Piercing . | . . . . Sneak Attacks . | . . . . Combat Hostiles . | . . . . Follow-up Attacks . | . . . . Damage Inflicted 1527 | 165 . 1219 143 Guns 1046 | 112 . 847 87 Cannons 353 | . . 328 25 Explosions 53 | 53 . . . Melee 75 | . . 44 31 Ramming . | . . . . Kinetic 789 | 43 . 746 . Thermal 582 | 53 . 417 112 Explosive . | . . . . Electromagnetic 81 | 69 . 12 . Impact . | . . . . Slashing 75 | . . 44 31 Piercing . | . . . . Highest Corruption . | . . . . Average Corruption . | . . . . Corruption Purged . | . . . . Corruption Blocked . | . . . . Overload Shots . | . . . . Overflow Damage 2 | . . . 2 Projectiles . | . . . . Explosions . | . . . . Melee 2 | . . . 2 Knockbacks . | . . . . Impact . | . . . . Kinetic . | . . . . Secondary . | . . . . Self-Inflicted Damage 15 | 15 . . . Shots 1 | 1 . . . Rammed . | . . . . Targets Rammed . | . . . . Kicked . | . . . . Crushed . | . . . . Highest Temperature 252 | 12 . 6 252 Average Temperature 58 | 12 . 3 76 Received Heat Transfer 336 | . . 120 216 Siege Activations . | . . . . Martial Activations . | . . . . Shielding Activations . | . . . . Robots Disrupted . | . . . . Combat Hostiles . | . . . . Robots Corrupted . | . . . . Combat Hostiles . | . . . . Parts Fried . | . . . . Impact Corruptions . | . . . . Robots Melted 1 | . . 1 . Combat Hostiles 1 | . . 1 . Parts Melted 4 | . . 4 . Heat Transferred 831 | 50 . 716 65 Parts Sabotaged . | . . . . Parts Stolen . | . . . . Parts Stripped . | . . . . Power Chain Reactions 2 | 2 . . . Alert | -11 -10 -10 -7 ------- Run | Yrd Mat Sub Scr Maximum Alert Level . | . . . . Low Security (%) 100 | 100 100 . . Level 1 . | . . . . Level 2 . | . . . . Level 3 . | . . . . Level 4 . | . . . . Level 5 . | . . . . High Security . | . . . . Max Security . | . . . . Peak Influence 5 | 5 . . . Initial . | . . . . Average . | 1 . . . Influence Increases 105 | 15 . 90 . Destroy 0b10 Robot/C 80 | . . 80 . Destroy 0b10 Robot/NC 15 | 15 . . . Destroy Leader 10 | . . 10 . Influence Decreases 105 | 15 . 90 . Time Decay 105 | 15 . 90 . Squads Dispatched . | . . . . Investigation . | . . . . Extermination . | . . . . Reinforcement . | . . . . Assault . | . . . . Garrison . | . . . . Intercept . | . . . . Searches Triggered . | . . . . Construction Impeded . | . . . . Haulers Reinforced . | . . . . Active Scanning Responses . | . . . . Cargo Convoy Interrupts . | . . . . Stealth | -11 -10 -10 -7 --------- Run | Yrd Mat Sub Scr Distress Signals . | . . . . Communications Jammed . | . . . . Distress Signals . | . . . . Times Spotted 23 | . . 8 15 Peak Tracking Total 6 | . . 3 6 Tactical Retreats . | . . . . Traps | -11 -10 -10 -7 ------- Run | Yrd Mat Sub Scr Traps Triggered 1 | . . 1 . Indirectly . | . . . . Trap Hack Attempts . | . . . . Triggered . | . . . . Disarmed . | . . . . Reprogrammed . | . . . . Reused . | . . . . Traps Extracted . | . . . . Installed 1 | . . 1 . Triggered . | . . . . Most Traps Carried 1 | . . 1 1 Machines | -11 -10 -10 -7 ---------- Run | Yrd Mat Sub Scr Machines Disabled 4 | . . . 4 Max in Single Turn 1 | . . . 1 Machines Repaired . | . . . . Machines Dismantled . | . . . . Machines Sabotaged . | . . . . Overloaded Fab Kills . | . . . . Hacking | -11 -10 -10 -7 --------- Run | Yrd Mat Sub Scr Machines Accessed 4 | . . 1 3 Terminals . | . . . . Fabricators . | . . . . Repair Stations . | . . . . Recycling Units . | . . . . Scanalyzers . | . . . . Garrison Access . | . . . . Total Hacks 17 | . . 4 13 Successful 17 | . . 4 13 Failed . | . . . . Catastrophic . | . . . . Database Lockouts . | . . . . Manual . | . . . . Terminals . | . . . . Fabricators . | . . . . Repair Stations . | . . . . Recycling Units . | . . . . Scanalyzers . | . . . . Garrison Access . | . . . . Terminal Hacks 17 | . . 4 13 Record 16 | . . 4 12 Proto ID Catalog 1 | . . . 1 Fabricator Hacks . | . . . . Repair Station Hacks . | . . . . Recycling Unit Hacks . | . . . . Scanalyzer . | . . . . Garrison Access Hacks . | . . . . Unauthorized Hacks . | . . . . Terminals . | . . . . Fabricators . | . . . . Repair Stations . | . . . . Recycling Units . | . . . . Scanalyzers . | . . . . Garrison Access . | . . . . Data Cores Recovered . | . . . . Used . | . . . . Hacking Detections . | . . . . Full Trace Events . | . . . . Feedback Events . | . . . . Feedback Blocked . | . . . . Robot Schematics Acquired . | . . . . Robots Built . | . . . . Authchips . | . . . . Time . | . . . . Total Robot Build Rating . | . . . . Part Schematics Acquired . | . . . . Parts Built . | . . . . Authchips . | . . . . Time . | . . . . Total Part Build Rating . | . . . . Parts Repaired . | . . . . Time . | . . . . Parts Recycled . | . . . . Recycled Matter . | . . . . Retrieved Matter . | . . . . Retrieved Components . | . . . . Parts Scanalyzed . | . . . . Part Schematics Acquired . | . . . . Parts Damaged . | . . . . Bothacking | -11 -10 -10 -7 ------------ Run | Yrd Mat Sub Scr Used RIF Installer . | . . . . Robots Hacked . | . . . . Non-combat . | . . . . Combat . | . . . . Robot Hacks Applied . | . . . . Relay Couplers Released . | . . . . Fabnet Peak Effective % . | . . . . Robots Rewired . | . . . . Allies Hacked . | . . . . Hacks Repelled . | . . . . Allies | -11 -10 -10 -7 -------- Run | Yrd Mat Sub Scr Total Allies 2 | . . . 2 Largest Group 1 | . . . 1 Highest-Rated Group 65 | . . . 65 Highest-Rated Ally 65 | . . . 65 Total Orders . | . . . . Ally Attacks 11 | . . . 11 Total Damage 388 | . . . 388 Kills 6 | . . . 6 Allies Corrupted . | . . . . Allies Melted 7 | . . . 7 Intel | -11 -10 -10 -7 ------- Run | Yrd Mat Sub Scr Active Infowar (turns) 605 | 44 210 351 . Seismic 605 | 44 210 351 . Robot Analysis Total . | . . . . Derelict Logs Recovered 6 | . . 1 5 Drone Launches . | . . . . Drone Recoveries . | . . . . Exploration | -11 -10 -10 -7 ------------- Run | Yrd Mat Sub Scr Turns Passed 7099 | 84 210 1954 4851 Spaces Moved 4314 | 55 22 1071 3166 Core 3 | 3 . . . Treads 91 | . . 91 . Legs . | . . . . Wheels 4220 | 52 22 980 3166 Hover . | . . . . Flight . | . . . . Fastest Speed 50 | 50 90 90 115 Average Speed 130 | 87 90 135 129 Slowest Speed 240 | 90 90 240 160 Overloaded Moves . | . . . . Propulsion Burnouts . | . . . . Robots Hopped . | . . . . Potential Cave-ins . | . . . . Cave-ins Triggered . | . . . . Exploration Rate (%) 40 | 4 6 62 89 Regions Visited 3 Branch Regions 2 Pre-discovered Areas 2 | . . 2 . Known Exits Taken . | . . . . Unknown Exits Taken 3 | 1 1 1 . Scrap Searched 18 | . . 7 11 Spaces Dug 2 | . . 2 . Terrain Destroyed 10 | 5 . 5 . Melee . | . . . . Projectile 5 | . . 5 . AOE 5 | 5 . . . Terrain Rammed . | . . . . Walls Destroyed . | . . . . Machines Disabled . | . . . . Actions | -11 -10 -10 -7 --------- Run | Yrd Mat Sub Scr Total 5680 | 75 212 1482 3911 Wait 1141 | . 191 301 649 Move 4311 | 54 21 1070 3166 Hop . | . . . . Pick Up 57 | 8 . 10 39 Fast Attach 20 | 7 . 8 5 Attach 6 | . . 1 5 Detach 1 | . . . 1 Swap 15 | . . 9 6 Drop 49 | . . 21 28 Fire 72 | 6 . 57 9 Melee 4 | . . 1 3 Ram . | . . . . Kick . | . . . . Crush . | . . . . Escape Stasis . | . . . . Rewire . | . . . . Trap 1 | . . 1 . Miscellaneous 3 | . . 3 . Route ------- -11/Scrapyard -10/Materials -10/Subcaves (discovered 3 exits: [*Mat x2] / *Scr) -7/Scraptown (discovered 2 exits: *Fac x2) History --------- Turn | Location | Event 23 | -11/Scrapyard | Discovered new exit (range 14) 85 | -11/Scrapyard | Entered Materials 289 | -10/Materials | Discovered new exit (range 8) 295 | -10/Materials | Entered Subcaves 296 | -10/Subcaves | Approached by a straggling Scientist 314 | -10/Subcaves | Build established: Mutant 721 | -10/Subcaves | Learned location of Recycling (-7) 862 | -10/Subcaves | Ambushed by Subdwellers from Twisted Machinery 1189 | -10/Subcaves | Discovered new exit (range 12) 1329 | -10/Subcaves | Learned location of Zion (-6) 1329 | -10/Subcaves | Met a Zionite searching for "candidates" 1430 | -10/Subcaves | Build established: Subdweller-Mutant 1687 | -10/Subcaves | Core integrity fell below 50% 1753 | -10/Subcaves | Scientist uncovered a shortcut to Scraptown 1937 | -10/Subcaves | Visited Clippyterm 1941 | -10/Subcaves | Learned 40 Factory zone layouts 1941 | -10/Subcaves | Learned Factory garrison access intel 1987 | -10/Subcaves | Shifting Twisted Machinery released Spk. Treads 1988 | -10/Subcaves | Shifting Twisted Machinery released Sub. Optics 1988 | -10/Subcaves | Discovered new exit (range 7) 2032 | -10/Subcaves | Disturbed a concealed Subdweller 2249 | -10/Subcaves | Entered Scraptown 2386 | -7/Scraptown | Visited Cyclists 2404 | -7/Scraptown | Visited UFD Registry 2404 | -7/Scraptown | Registered with UFD as "Wrenchbucket" 2441 | -7/Scraptown | Entered Cyclist Reading Room 2460 | -7/Scraptown | Visited Fellowship of the Rings 2476 | -7/Scraptown | Visited Comm Corps 2573 | -7/Scraptown | Discovered new exit (range 11) 2727 | -7/Scraptown | Visited Science Guys 2773 | -7/Scraptown | Received an X-ray algorithm 2780 | -7/Scraptown | Visited Supply Room 2819 | -7/Scraptown | Delivered Scrap Shield to a Scientist 2886 | -7/Scraptown | Visited LU-1G1's Boring Crew 2921 | -7/Scraptown | Visited Infowarlord's Domain 2939 | -7/Scraptown | Visited Junk Repository 2986 | -7/Scraptown | Visited Modified Component R&D 3016 | -7/Scraptown | Visited Abandonware Association 3029 | -7/Scraptown | Learned abandonware demo "POISON.EXE" 3059 | -7/Scraptown | Visited Botcube Research 3071 | -7/Scraptown | Found Botcube 3095 | -7/Scraptown | Visited Scrapoid Pod Storage 3125 | -7/Scraptown | Build established: Mutant 3216 | -7/Scraptown | Visited IN-MT5's Study 3244 | -7/Scraptown | Visited Bundlers 3310 | -7/Scraptown | Visited Spacefarers 3552 | -7/Scraptown | Heard Great Nut preacher, LISTEN AND RECITE! 4072 | -7/Scraptown | Scanned Subdweller tech in exchange for log data 4075 | -7/Scraptown | Learned location of 1 exit from Research 4076 | -7/Scraptown | Learned 8 Research zone layouts 4079 | -7/Scraptown | Learned Research emergency access door positions 4133 | -7/Scraptown | Guru changed UFD alias to "Bladeslider" 4292 | -7/Scraptown | Visited Chapter 10 4513 | -7/Scraptown | Found Scrap Suit 4515 | -7/Scraptown | Found Scrap Suit 5570 | -7/Scraptown | Found Exp. Terrain Scan Processor 6008 | -7/Scraptown | Botcube activated 6026 | -7/Scraptown | Botcube completed mutation into legged form, armed with 1 gun. 6431 | -7/Scraptown | Met Optimus 6431 | -7/Scraptown | Accepted into 0bPrime 6831 | -7/Scraptown | Civil war broke out across Scraptown 6905 | -7/Scraptown | Identified exit to Factory 6930 | -7/Scraptown | Found Thermal Lance 7028 | -7/Scraptown | Found Lrg. Botcube 7030 | -7/Scraptown | Found Lrg. Botcube 7034 | -7/Scraptown | Found Botcube 7040 | -7/Scraptown | Found Botcube 7053 | -7/Scraptown | Optimus destroyed in the chaos of civil war 7074 | -7/Scraptown | Core integrity fell below 20% 7094 | -7/Scraptown | Botcube activated 7100 | -7/Scraptown | Destroyed by OH-21K(j) with Overtuned Pulse Rifle Last Messages --------------- 07028_ Acquired Lrg. Botcube. 07034_ Acquired Botcube. 07035_ Dropped Ovr. Treads. 07040_ Acquired Botcube. 07051_ Dropped Lgt. Deuterium Engine. 07053_ ANNOUNCEMENT: The traitor Optimus has been dealt with. Put down any remaining collaborators. 07057_ Acquired Sub. Beam Cannon. 07074_ Nuclear Core destroyed. 07078_ *Leggy Mutation suffers critical hit (Burn). 07081_ Acquired Lgt. Deuterium Engine. 07086_ Bolt penetrates *Leggy Mutation. 07087_ *Leggy Mutation overheating. 07088_ *Leggy Mutation critical meltdown. 07088_ CPS modules swiftly deploy to protect *Leggy Mutation components. 07089_ Penetrated by Bolt. 07089_ Machine disabled. 07091_ Bolt penetrates Machine. 07094_ Botcube begins transforming into Mutated Botcube. 07094_ Penetrated by Bolt. Map ----- +----------------------------------------------------+ | #???????????????????????###################???#### | | #???????????????????????"""##"""##"" ##"""#??## # | | ???????????????????????#"" ##"" ##"" ## "#### | | ???????????????????????#"" | | ???????????????????????# | | ???????????????????????####################### | | ?????????????????????????????????????????????## # | | ??????????????????????????????????????????????# # | | ????????????????????????##########????????????# # | | ????????????????????????#"""" """#?############ # | | ????????????????????????#" "#?#"""""""""## # | | ????????????????????????#" = "#?# " " " ## # | | ????????????????????????#""""!]""#?# ## # | | ????????????##########?#######!##### "# #" ## # | | ????????????#""""""" #?#"""" *[ ""## "#X#" ## # | | ####????????#" ! "#?#""" * ""## "###" ## # | | "#????????#" "#?#"" ! " ## """"" ## # | | X#????????#" "#?#""" "## ## # | | "#????????#" "#?# "## ## # | | #????????##### ####?###### ########### ##### # | | #####???????##### ########### ########### ##### # | | #???????#"""" """ """" ""=""""" """" """"" " | | #???????# [%!* | | #???????#" j ![ | | #???????#" j M % | | #???????#" @ * | | #????#### | | #????"""" """""""""""""""""""""""""""" | | #????""" """""""""""""""""""""""""""" | | #????"""" ""###### ################"" | | #????"""" ""# ##????????#"" | | #???#"""" ""# X"#????????#"" | | ###?#"""" ""# "" "" ##????????#"" | | ""#"#"""" ""# "" "" X"#??????###"" | | """"#"""" ""# " " ######### #"" | | ""####### "" "" | | ###?????#" [ "" " | | [#########"/%= ""# " " ######### #"" | | [%= %==! ""# "" "" ""#??????###"" | | & = *!! ""# "" "" ##????????#"" | | %%= /""# X"#????????#"" | | [/==! ""# ##????????#"" | | /! ""###### ################"" | | =!%% !!""""""""""""""""""""""""" | | =!%% !![""""""""""""""""""""""" | | / !=%!%=! | | /==!=![%! | | %!!%[ | | #""""#" !!%!= = | | #????#" =%! !% | +----------------------------------------------------+ Best States ------------- Heat Dissipation 25 Energy Generation 15 Energy Capacity 250 Matter Stores 300 Matter Capacity 300 Sight Range 16 Terrain Scan Density 10 Armor Coverage 800 Evasion (%) 42 Recoil Reduction 1 Item Schematics ----------------- None Robot Schematics ------------------ None Fabricated ------------ Nothing Repaired ---------- Nothing Alien Tech Used ----------------- None Achievements -------------- None Challenges ------------ None Game ------ Seed WeaponsArmorStrikerail Manual? 0 Play Time 00:43:29 Cumulative 756.0 hours Start 2025.07.28 @ 14:59:15 End 2025.07.29 @ 18:55:11 Sessions 3 Manual Loads 0 Difficulty Rogue Special Mode None Game No. 286 Rogue 282 Adventurer 4 Explorer 0 Win Type - Total 12 Types 7/1/1/1/0/1/0/0/0/1 Lore% 94 Gallery% 89 Achievement% 87 Wizard Run 0 Options --------- Layout 0 ASCII 0 Keyboard 0 Movement Numpad Keybinds 0 Fullscreen 2 Font 18/CogNarrow Map View 76x50 Zoom Use 0% Tactical HUD 1 Map Filters SHIFT_HUE(110) Filters SHIFT_HUE(250) Steam 1 RUN: b52f23da-2134-4b1a-a7ff-8fb7c60f1abe